Cogmind - Beta 13 *** ADVENTURER MODE // 2024.07.12 @ 12:05:26 Player: Jefffff Result: Destroyed by as-25365 with Assembled Heavy Rifle Performance ------------- Evolutions (0) 0 Regions Visited (2) 400 Robots Destroyed (16) 80 Value Destroyed (307) 307 Prototype IDs (0) 0 Alien Tech Used (0) 0 Bonus (0) 0 TOTAL SCORE: 787 Bonus ------- None Cogmind --------- Core Integrity 0/250 Matter 300/300 Energy 100/100 System Corruption 0% Temperature Cool (0) Movement Core (400) Ox7 Location -10/Mines Parts ------- > --- POWER (1) -------- (None) > --- PROPULSION (2) --- (None) > --- UTILITY (2) ------ Large Storage Unit Utility Shielding > --- WEAPON (2) ------- Small Laser Assault Rifle > --- INVENTORY (15) --- Light Ion Engine Light Deuterium Engine Light Treads Light Treads Light Treads Aluminum Leg Aluminum Leg Heat Sink Terrain Scanner Targeting Computer Mining Laser Peak State ------------ > --- POWER ------------ Light Nuclear Core > --- PROPULSION ------- Light Treads Light Treads > --- UTILITY ---------- Large Storage Unit Utility Shielding > --- WEAPON ----------- Small Laser Assault Rifle > --- INVENTORY -------- Light Ion Engine Light Treads Light Treads Light Treads Aluminum Leg Aluminum Leg Terrain Scanner Targeting Computer Small Laser Assault Rifle [Rating: 10] Favorites ----------- Power Light Nuclear Core Engine Light Ion Engine Power Core Light Nuclear Core Propulsion Light Treads Treads Light Treads Utility Utility Shielding Device Terrain Scanner Storage Large Storage Unit Protection Utility Shielding Weapon Small Laser Energy Gun Small Laser Ballistic Gun Assault Rifle Special Weapon Mining Laser Build | -11 -10 -10 ------- Run | Yrd Mat Min Slots Evolved . | . . . Power . | . . . Propulsion . | . . . Utility . | . . . Weapon . | . . . Parts Attached 22 | 6 13 3 Power 3 | 1 2 . Engine 1 | 1 . . Core 2 | . 2 . Reactor . | . . . Propulsion 7 | 2 5 . Treads 7 | 2 5 . Leg . | . . . Wheel . | . . . Hover . | . . . Flight . | . . . Utility 4 | 1 3 . Device 1 | . 1 . Storage 2 | 1 1 . Processor . | . . . Hackware . | . . . Protection 1 | . 1 . Artifact . | . . . Weapon 8 | 2 3 3 Energy Gun 4 | 1 1 2 Energy Cannon . | . . . Ballistic Gun 3 | 1 1 1 Ballistic Cannon . | . . . Launcher . | . . . Special Weapon 1 | . 1 . Impact Weapon . | . . . Slashing Weapon . | . . . Piercing Weapon . | . . . Special Melee Weapon . | . . . Unidentified Prototypes . | . . . Parts Lost 4 | . . 4 Power 1 | . . 1 Propulsion 2 | . . 2 Utility . | . . . Weapon 1 | . . 1 Highest Loss Streak 3 | . . 3 To Critical Strikes . | . . . Average Slot Usage (%) 93 | . 94 85 Engine 1 | . 1 . Core 11 | . 12 8 Treads 26 | . 26 21 Device 1 | . 1 . Storage 14 | . 14 14 Protection 10 | . 9 14 Energy Gun 13 | . 13 15 Ballistic Gun 12 | . 13 6 Naked Turns . | . . . Heaviest Build 29 | 11 29 28 Greatest Support 40 | 40 40 40 Greatest Overweight (x) 8 | . 8 7 Average Overweight (x) . | . . . Largest Inventory Capacity 15 | 8 15 15 Average Capacity 11 | 6 11 15 Most Carried 13 | 5 13 12 Average Carried 7 | 2 7 11 Final Capacity 15 | 8 15 15 Final Carried 11 | 3 11 11 Class Distribution -------------------- 100% | Mutant Dominant Class ---------------- Mutant | -10/Materials Mutant | -10/Mines Resources | -11 -10 -10 ----------- Run | Yrd Mat Min Matter Collected 540 | 144 341 55 Remotely . | . . . Salvage Created 470 | . 408 62 Parts 28 | . 28 . Haulers Intercepted . | . . . Recyclers Shooed . | . . . Parts Field Recycled . | . . . Retrieved Matter . | . . . Parts Self-Destructed . | . . . Prevented . | . . . Kills | -11 -10 -10 ------- Run | Yrd Mat Min Combat Hostiles Destroyed 16 | . 11 5 Guns 15 | . 11 4 AOE 1 | . . 1 Classes Destroyed 6 | . 5 1 Worker 1 | . 1 . Builder 1 | . 1 . Watcher 3 | . 3 . Swarmer 6 | . 6 . Grunt 5 | . 5 . Assembled 5 | . . 5 Best Kill Streak 4 | . 4 3 Combat Bots Only 3 | . 3 3 Max Kills in Single Turn 2 | . 1 2 Gunslinging 1 | . . 1 Exploded 1 | . . 1 Melee . | . . . Uniques/NPCs Destroyed . | . . . Combat | -11 -10 -10 -------- Run | Yrd Mat Min Hostile Shots Fired 119 | . 60 59 Missed 22 | . 14 8 Damage Taken 1065 | . 381 684 Core 259 | . 43 216 Absorbed by Shields . | . . . Redirected to Shielding 10 | . 4 6 Ignored by Resistances 320 | . 122 198 Regen/Repaired (Parts) 85 | . 85 . Core Remaining (%) 100 | 100 . . Volleys Fired 55 | . 36 19 Largest 2 | . 2 2 Hottest 140 | . 60 140 Shots Fired 103 | . 72 31 Gun 101 | . 72 29 Cannon . | . . . Launcher . | . . . Special 2 | . . 2 Kinetic 46 | . 36 10 Thermal 57 | . 36 21 Explosive . | . . . Electromagnetic . | . . . Robot Hit Streak 10 | . 10 8 Robot Miss Streak 3 | . 2 3 Penetration Max . | . . . Secondary Targets 3 | . 1 2 Max Gunslinging Chain 1 | . 1 1 Shots Hit Robots 80 | . 55 25 Core Hits 36 | . 23 13 Critical Kills . | . . . Critical Parts Destroyed . | . . . Critical Strikes . | . . . Melee Attacks . | . . . Impact . | . . . Slashing . | . . . Piercing . | . . . Sneak Attacks . | . . . Combat Hostiles . | . . . Follow-up Attacks . | . . . Damage Inflicted 989 | . 660 329 Guns 962 | . 659 303 Cannons . | . . . Explosions . | . . . Melee . | . . . Ramming 3 | . 1 2 Kinetic 458 | . 341 117 Thermal 528 | . 318 210 Explosive . | . . . Electromagnetic . | . . . Impact . | . . . Slashing . | . . . Piercing . | . . . Highest Corruption . | . . . Average Corruption . | . . . Corruption Purged . | . . . Corruption Blocked . | . . . Overload Shots . | . . . Overflow Damage . | . . . Projectiles . | . . . Explosions . | . . . Melee . | . . . Knockbacks . | . . . Impact . | . . . Kinetic . | . . . Secondary . | . . . Self-Inflicted Damage . | . . . Shots . | . . . Rammed 2 | . 1 1 Targets Rammed 2 | . 1 1 Kicked . | . . . Crushed . | . . . Highest Temperature 416 | . 144 416 Average Temperature 94 | . 34 202 Received Heat Transfer 462 | . 222 240 Siege Activations . | . . . Robots Corrupted . | . . . Combat Hostiles . | . . . Parts Fried . | . . . Impact Corruptions . | . . . Robots Melted . | . . . Combat Hostiles . | . . . Parts Melted . | . . . Heat Transferred 1200 | . 725 475 Parts Sabotaged . | . . . Parts Stolen . | . . . Parts Stripped . | . . . Power Chain Reactions . | . . . Alert | -11 -10 -10 ------- Run | Yrd Mat Min Peak Influence 180 | . 180 31 Initial 30 | . . 30 Average 53 | . 60 21 Maximum Alert Level . | . . . Low Security (%) 100 | 100 100 100 Level 1 . | . . . Level 2 . | . . . Level 3 . | . . . Level 4 . | . . . Level 5 . | . . . High Security . | . . . Max Security . | . . . Squads Dispatched 1 | . 1 . Investigation 1 | . 1 . Extermination . | . . . Reinforcement . | . . . Assault . | . . . Garrison . | . . . Intercept . | . . . Searches Triggered . | . . . Construction Impeded . | . . . Haulers Reinforced . | . . . Active Scanning Responses . | . . . Cargo Convoy Interrupts . | . . . Stealth | -11 -10 -10 --------- Run | Yrd Mat Min Distress Signals 2 | . 2 . Communications Jammed . | . . . Distress Signals . | . . . Times Spotted 41 | . 17 24 Peak Tracking Total 13 | . 5 13 Tactical Retreats 3 | . . 3 Traps | -11 -10 -10 ------- Run | Yrd Mat Min Traps Triggered 2 | . 2 . Indirectly . | . . . Trap Hack Attempts . | . . . Triggered . | . . . Disarmed 10 | . 10 . Reprogrammed . | . . . Reused . | . . . Traps Extracted . | . . . Installed . | . . . Triggered . | . . . Machines | -11 -10 -10 ---------- Run | Yrd Mat Min Machines Disabled 1 | . 1 . Max in Single Turn 1 | . 1 . Machines Repaired . | . . . Machines Dismantled . | . . . Machines Sabotaged . | . . . Overloaded Fab Kills . | . . . Hacking | -11 -10 -10 --------- Run | Yrd Mat Min Machines Accessed 7 | . 7 . Terminals 6 | . 6 . Fabricators . | . . . Repair Stations 1 | . 1 . Recycling Units . | . . . Scanalyzers . | . . . Garrison Access . | . . . Total Hacks 29 | . 29 . Successful 13 | . 13 . Failed 16 | . 16 . Catastrophic 3 | . 3 . Database Lockouts . | . . . Manual 14 | . 14 . Terminals 25 | . 25 . Fabricators . | . . . Repair Stations 4 | . 4 . Recycling Units . | . . . Scanalyzers . | . . . Garrison Access . | . . . Terminal Hacks 9 | . 9 . Branch Access Points 1 | . 1 . Scanalyzer Index 1 | . 1 . Locate Traps 1 | . 1 . Disarm Traps 4 | . 4 . Zone Layout 2 | . 2 . Fabricator Hacks . | . . . Repair Station Hacks 4 | . 4 . Scan Component 2 | . 2 . Repair 2 | . 2 . Recycling Unit Hacks . | . . . Scanalyzer . | . . . Garrison Access Hacks . | . . . Unauthorized Hacks . | . . . Terminals . | . . . Fabricators . | . . . Repair Stations . | . . . Recycling Units . | . . . Scanalyzers . | . . . Garrison Access . | . . . Data Cores Recovered . | . . . Used . | . . . Hacking Detections 7 | . 7 . Full Trace Events 1 | . 1 . Feedback Events . | . . . Feedback Blocked . | . . . Robot Schematics Acquired . | . . . Robots Built . | . . . Authchips . | . . . Time . | . . . Total Robot Build Rating . | . . . Part Schematics Acquired . | . . . Parts Built . | . . . Authchips . | . . . Time . | . . . Total Part Build Rating . | . . . Parts Repaired 2 | . 2 . Time 64 | . 64 . Parts Recycled . | . . . Recycled Matter . | . . . Retrieved Matter . | . . . Retrieved Components . | . . . Parts Scanalyzed . | . . . Part Schematics Acquired . | . . . Parts Damaged . | . . . Bothacking | -11 -10 -10 ------------ Run | Yrd Mat Min Used RIF Installer . | . . . Robots Hacked . | . . . Non-combat . | . . . Combat . | . . . Robot Hacks Applied . | . . . Relay Couplers Released . | . . . Fabnet Peak Effective % . | . . . Robots Rewired . | . . . Allies Hacked . | . . . Hacks Repelled . | . . . Allies | -11 -10 -10 -------- Run | Yrd Mat Min Total Allies . | . . . Largest Group . | . . . Highest-Rated Group . | . . . Highest-Rated Ally . | . . . Total Orders . | . . . Ally Attacks . | . . . Total Damage . | . . . Kills . | . . . Allies Corrupted . | . . . Allies Melted . | . . . Intel | -11 -10 -10 ------- Run | Yrd Mat Min Robot Analysis Total . | . . . Derelict Logs Recovered . | . . . Drone Launches . | . . . Drone Recoveries . | . . . Exploration | -11 -10 -10 ------------- Run | Yrd Mat Min Turns Passed 1297 | 73 1110 114 Spaces Moved 603 | 45 532 26 Core 19 | 12 6 1 Treads 584 | 33 526 25 Legs . | . . . Wheels . | . . . Hover . | . . . Flight . | . . . Fastest Speed 50 | 50 160 160 Average Speed 162 | 130 163 203 Slowest Speed 450 | 160 450 400 Overloaded Moves . | . . . Propulsion Burnouts . | . . . Robots Hopped . | . . . Cave-ins Triggered . | . . . Exploration Rate (%) 29 | 3 78 6 Regions Visited 2 Branch Regions 1 Pre-discovered Areas . | . . . Known Exits Taken 1 | . 1 . Unknown Exits Taken 1 | 1 . . Scrap Searched . | . . . Spaces Dug . | . . . Terrain Destroyed 1 | . . 1 Melee . | . . . Projectile 1 | . . 1 AOE . | . . . Terrain Rammed . | . . . Walls Destroyed . | . . . Machines Disabled . | . . . Actions | -11 -10 -10 --------- Run | Yrd Mat Min Total 809 | 59 699 51 Wait 99 | . 98 1 Move 601 | 44 531 26 Hop . | . . . Pick Up 27 | 9 17 1 Fast Attach . | . . . Attach 13 | 6 6 1 Detach . | . . . Swap 9 | . 7 2 Drop 3 | . 3 . Fire 55 | . 36 19 Melee . | . . . Ram . | . . . Kick . | . . . Crush 2 | . 1 1 Escape Stasis . | . . . Rewire . | . . . Trap . | . . . Miscellaneous . | . . . Route ------- -11/Scrapyard -10/Materials (discovered 2 exits: [*Mat] / *Min) -10/Mines History --------- Turn | Location | Event 7 | -11/Scrapyard | Discovered new exit (range 14) 74 | -11/Scrapyard | Entered Materials 323 | -10/Materials | Build established: Mutant 536 | -10/Materials | Discovered new exit (range 13) 900 | -10/Materials | Repaired Lgt. Nuclear Core 928 | -10/Materials | Repaired Lgt. Treads 1097 | -10/Materials | Discovered new exit (range 16) 1117 | -10/Materials | Identified exit to Mines 1184 | -10/Materials | Entered Mines 1185 | -10/Mines | Assembled infested the area 1190 | -10/Mines | Assisted by a Guerilla fighting off Assembled 1248 | -10/Mines | Core integrity fell below 50% 1266 | -10/Mines | Core integrity fell below 20% 1288 | -10/Mines | Lost 3 parts (1p1n1w) 1298 | -10/Mines | Destroyed by as-25365 with Assembled Heavy Rifle Last Messages --------------- 01257_ Lgt. Nuclear Core destroyed. 01264_ The unstable cave ceiling collapses. 01269_ as-22201 destroyed. 01269_ Switching to secondary target: as-44282. 01269_ as-44282 destroyed. 01272_ Acquired 11 matter. 01273_ The unstable cave ceiling collapses. 01274_ Acquired 20 matter. 01275_ K-01 Serf collects debris. 01276_ Acquired 11 matter. 01278_ K-01 Serf collects debris. 01279_ The unstable cave ceiling collapses. 01279_ R-06 Scavenger collects Lgt. Ion Engine. 01282_ R-06 Scavenger collects Seismic Detector. 01283_ K-01 Serf collects debris. 01284_ Acquired 13 matter. 01286_ K-01 Serf collects debris. 01286_ Slammed into K-01 Serf. 01295_ Lgt. Treads destroyed. 01296_ R-06 Scavenger destroyed. Map ----- +----------------------------------------------------+ | ?????????????????????????????????????????????????? | | ?????????????????????????????????????????????????? | | ?????????????????????????????????????????????????? | | ?????????????????????????????????????????????????? | | ?????????????????????????????????????????????????? | | ?????????????????????????????????????????????????? | | ?????????????????????????????????????????????????? | | ?????????????????????????????????????????????????? | | ?????????????????????????????????????????????????? | | ?????????????????????????????????????????????????? | | ?????????????????????????????????????????????????? | | ?????????????????????????????????????????????????? | | ?????????????????????????????????????????????????? | | ?????????????????????????????????????????????????? | | ?????????????????????????????????????????????????? | | ?????????????????????????????????????????????????? | | ?????????????????????????????????????????????????? | | ?????????????????????????????????????????????????? | | ?????????????????????????????????????????????????? | | ?????????????????????????????????????????????????? | | ?????????????????????????????????????????????????? | | ?????????????????########????????????????????????? | | ?????????????????# ## ##???????????????????????? | | ?????????????????# # #???????????????????????? | | ?????????########## ##??????????????????????? | | ?? ==a%!! a%%%@#??????????????????????? | | ?????????######### # #??????????????????????? | | ?????????????????# # # #??????????????????????? | | ?????????????????# # ### #??????????????????????? | | ?????????????????# ####?# #??????????????????????? | | ??????????????####%####?# #??????????????????????? | | ??????????????# #?# #??????????????????????? | | ??????????????# % #?# #??????????????????????? | | ??????????????# % #?# ??????????????????????? | | ??????????????# % #?###??????????????????????? | | ??????????????# %= #??????????????????????????? | | ??????????????# = % #??????????????????????????? | | ??????????????##"% ####??????????????????????????? | | ??????????????? #?????????????????????????????? | | ???????????????#% #?????????????????????????????? | | ???????????????? #?????????????????????????????? | | ???????????????? ###?????????????????????????????? | | ???????????????? ????????????????????????????????? | | ????????????????#????????????????????????????????? | | ?????????????????????????????????????????????????? | | ?????????????????????????????????????????????????? | | ?????????????????????????????????????????????????? | | ?????????????????????????????????????????????????? | | ?????????????????????????????????????????????????? | | ?????????????????????????????????????????????????? | +----------------------------------------------------+ Best States ------------- Heat Dissipation 25 Energy Generation 14 Energy Capacity 160 Matter Stores 300 Matter Capacity 300 Sight Range 16 Terrain Scan Range 14 Terrain Scan Density 10 Resistance: KI 20 Resistance: TH 20 Resistance: EX 20 Resistance: EM 20 Resistance: I 20 Resistance: S 20 Resistance: P 20 Utility Shielding 33 Evasion (%) 50 Recoil Reduction 2 Offensive Hacking 10 Item Schematics ----------------- None Robot Schematics ------------------ None Fabricated ------------ Nothing Alien Tech Used ----------------- None Achievements -------------- None Challenges ------------ None Game ------ Seed AntigravStructuralPendant Manual? 0 Play Time 00:12:48 Cumulative 15.7 hours Start 2024.07.12 @ 11:53:07 End 2024.07.12 @ 12:05:26 Sessions 1 Manual Loads 0 Difficulty Adventurer Special Mode None Game No. 25 Rogue 0 Adventurer 25 Explorer 0 Win Type - Total 0 Types 0/0/0/0/0/0/0/0/0 Lore% 22 Gallery% 22 Achievement% 19 Wizard Run 0 Options --------- Layout 2 ASCII 0 Keyboard 0 Movement Mouse Keybinds 0 Fullscreen 2 Font 48/Smallcaps Map View 25x22 Zoom Use 99% Tactical HUD 1 Map Filters NONE Filters NONE Steam 1 RUN: ffcab903-a6a8-4547-bf7d-4232352d0ccb